fUSD/lending_fUSD_20250607
["ID","MTS","AMOUNT","RATE_DAILY","PERIOD"]
[364876513,1749283898596,-480.0,0.00028712,5]
[364876514,1749283898606,-480.0,0.00028712,5]
[364876515,1749283898616,-480.0,0.00028712,5]
[364876516,1749283898626,-480.0,0.00028712,5]
[364876517,1749283898640,-642.32,0.00028712,5]
[364876518,1749283898650,-1416.8,0.00028712,5]
[364876519,1749283898660,-480.0,0.00028712,5]
[364876520,1749283898671,-151.0,0.00028712,7]
[364876521,1749283898681,-151.0,0.00028712,7]
[364876522,1749283898691,-151.0,0.00028712,7]
[364876523,1749283898701,-151.0,0.00028712,7]
[364876524,1749283898711,-480.0,0.00028712,5]
[364876525,1749283898721,-181.679148,0.00028712,7]
[364876526,1749283898731,-181.679148,0.00028712,7]
[364876527,1749283898741,-480.0,0.00028712,5]
[364876528,1749283898751,-168.82822,0.00028712,7]
[364876529,1749283898761,-273.9038133,0.00028712,5]
[364876530,1749283898771,-168.82822,0.00028712,7]
[364876531,1749283898781,-722.44,0.00028712,5]
[364876532,1749283898792,-658.72,0.00028712,5]
[364876533,1749283898802,-480.0,0.00028712,5]
[364876534,1749283898812,-480.0,0.00028712,5]
[364876535,1749283898822,-514.07,0.00028712,5]
[364876536,1749283898832,-480.0,0.00028712,5]
[364876537,1749283898842,-480.0,0.00028712,5]
[364876538,1749283898852,-273.32582802,0.00028712,5]
[364876539,1749283898862,-1423.16,0.00028712,5]
[364876540,1749283898872,-1954.69,0.00028712,5]
[364876541,1749283898882,-1930.071585,0.00028712,7]
[364876542,1749283898892,-1930.071585,0.00028712,7]
[364876543,1749283898903,-480.0,0.00028712,5]
[364876544,1749283898912,-151.0,0.00028712,7]
[364876545,1749283898923,-624.11,0.00028712,5]
[364876546,1749283898933,-480.0,0.00028712,5]
[364876547,1749283898943,-480.0,0.00028712,5]
[364876548,1749283898953,-151.0,0.00028712,7]
[364876549,1749283898963,-480.0,0.00028712,5]
[364876550,1749283898972,-249.10899414,0.00028712,5]
[364876551,1749283898982,-161.400488,0.00028712,7]
[364876552,1749283898992,-618.47,0.00028712,5]
[364876553,1749283899001,-1137.84,0.00028712,5]
[364876554,1749283899011,-1163.74,0.00028712,5]
[364876555,1749283899021,-480.0,0.00028712,5]
[364876556,1749283899031,-480.0,0.00028712,5]
[364876557,1749283899042,-807.84,0.00028712,5]
[364876558,1749283899052,-1323.94,0.00028712,5]
[364876559,1749283899063,-480.0,0.00028712,5]
[364876560,1749283899073,-480.0,0.00028712,5]
[364876561,1749283899083,-722.49,0.00028712,5]
[364876562,1749283899093,-480.0,0.00028712,5]
[364876563,1749283899104,-1046.98,0.00028712,5]
[364876564,1749283899113,-480.0,0.00028712,5]
[364876565,1749283899123,-713.0,0.00028712,5]
[364876566,1749283899134,-548.11,0.00028712,5]
[364876567,1749283899144,-882.53,0.00028712,5]
[364876568,1749283899154,-480.0,0.00028712,5]
[364876569,1749283899165,-736.64,0.00028712,5]
[364876570,1749283899175,-151.0,0.00028712,7]
[364876571,1749283899185,-658.07,0.00028712,5]
[364876572,1749283899195,-676.89,0.00028712,5]
[364876573,1749283899204,-611.81,0.00028712,5]
[364876574,1749283899214,-153.754553,0.00028712,7]
[364876575,1749283899223,-903.48,0.00028712,5]
[364876576,1749283899233,-545.14,0.00028712,5]
[364876577,1749283899366,-1030.91,0.00028712,5]
[364876578,1749283899376,-153.754553,0.00028712,7]
[364876579,1749283899386,-480.0,0.00028712,5]
[364876580,1749283899396,-480.0,0.00028712,5]
[364876581,1749283899405,-480.0,0.00028712,5]
[364876582,1749283899414,-1787.253615,0.00028712,5]
[364876583,1749283899425,-480.0,0.00028712,5]
[364876584,1749283899435,-652.14,0.00028712,5]
[364876585,1749283899446,-264.93261106,0.00028712,5]
[364876586,1749283899455,-1026.76,0.00028712,5]
[364876587,1749283899465,-573.4,0.00028712,5]
[364876588,1749283899475,-873.46,0.00028712,5]
[364876589,1749283899485,-480.0,0.00028712,5]
[364876590,1749283899495,-787.2,0.00028712,5]
[364876591,1749283899505,-1212.38,0.00028712,5]
[364876592,1749283899515,-2102.121321,0.00028712,5]
[364876593,1749283899524,-480.0,0.00028712,5]
[364876594,1749283899534,-611.97058599,0.00028712,5]
[364876595,1749283899544,-290.056007,0.00028712,7]
[364876596,1749283899554,-480.0,0.00028712,5]
[364876597,1749283899564,-480.0,0.00028712,5]
[364876598,1749283899573,-162.958385,0.00028712,5]
[364876599,1749283899583,-186.75305285,0.00028712,5]
[364876600,1749283899592,-1174.57,0.00028712,5]
[364876601,1749283899602,-489.86566549,0.00028712,5]
[364876602,1749283899611,-850.33,0.00028712,5]
[364876603,1749283899621,-554.27,0.00028712,5]
[364876604,1749283899631,-480.0,0.00028712,5]
[364876605,1749283899641,-737.61,0.00028712,5]
[364876606,1749283899651,-494.24,0.00028712,5]
[364876607,1749283899660,-634.26,0.00028712,5]
[364876608,1749283899670,-835.68,0.00028712,5]
[364876609,1749283899680,-768.49,0.00028712,5]
[364876610,1749283899689,-480.0,0.00028712,5]
[364876611,1749283899699,-528.15,0.00028712,5]
[364876612,1749283899708,-480.0,0.00028712,5]
[364876613,1749283899717,-480.0,0.00028712,5]
[364876614,1749283899727,-480.0,0.00028712,5]
[364876615,1749283899736,-1115.25,0.00028712,5]
[364876616,1749283899745,-480.0,0.00028712,5]
[364876617,1749283899754,-2016.63,0.00028712,5]
[364876618,1749283899763,-480.0,0.00028712,5]
[364876619,1749283899773,-480.0,0.00028712,5]
[364876620,1749283899782,-480.0,0.00028712,5]
[364876621,1749283899792,-984.78,0.00028712,5]
[364876622,1749283899801,-480.0,0.00028712,5]
[364876623,1749283899810,-480.0,0.00028712,5]
[364876624,1749283899820,-480.0,0.00028712,5]
[364876625,1749283899829,-956.19,0.00028712,5]
[364876626,1749283899839,-485.39,0.00028712,5]
[364876627,1749283899849,-601.8,0.00028712,5]
[364876628,1749283899859,-798.33,0.00028712,5]
[364876629,1749283899868,-658.43,0.00028712,5]
[364876630,1749283899877,-984.27,0.00028712,5]
[364876631,1749283899888,-853.62,0.00028712,5]
[364876632,1749283899897,-480.0,0.00028712,5]
[364876633,1749283899907,-480.0,0.00028712,5]
[364876634,1749283899918,-1719.89,0.00028712,5]
[364876635,1749283899927,-879.54,0.00028712,5]
[364876636,1749283899937,-990.87,0.00028712,5]
[364876637,1749283899947,-769.25,0.00028712,5]
[364876638,1749283899956,-1000.0,0.00028712,5]
[364876639,1749283899966,-619.63,0.00028712,5]
[364876640,1749283899975,-964.13,0.00028712,5]
[364876641,1749283899985,-614.65,0.00028712,5]
[364876642,1749283899995,-480.0,0.00028712,5]
[364876643,1749283900005,-620.08,0.00028712,5]
[364876644,1749283900015,-959.52,0.00028712,5]
[364876645,1749283900025,-481.61,0.00028712,5]
[364876646,1749283900034,-607.29,0.00028712,5]
[364876647,1749283900044,-1150.03,0.00028712,5]
[364876648,1749283900054,-647.25,0.00028712,5]
[364876649,1749283900064,-1086.55,0.00028712,5]
[364876650,1749283900073,-1473.87,0.00028712,5]
[364876651,1749283900083,-480.0,0.00028712,5]
[364876652,1749283900093,-480.0,0.00028712,5]
[364876653,1749283900102,-7690.81,0.00028712,5]
[364876654,1749283900111,-480.0,0.00028712,5]
[364876655,1749283900122,-1206.45,0.00028712,5]
[364876656,1749283900131,-480.0,0.00028712,5]
[364876657,1749283900141,-594.14,0.00028712,5]
[364876658,1749283900151,-656.54,0.00028712,5]
[364876659,1749283900160,-665.13,0.00028712,5]
[364876660,1749283900170,-509.24,0.00028712,5]
[364876661,1749283900180,-480.0,0.00028712,5]
[364876662,1749283900190,-867.98,0.00028712,5]
[364876663,1749283900199,-835.03,0.00028712,5]
[364876664,1749283900209,-1091.22,0.00028712,5]
[364876665,1749283900219,-788.44,0.00028712,5]
[364876666,1749283900229,-480.0,0.00028712,5]
[364876667,1749283900239,-480.0,0.00028712,5]
[364876668,1749283900248,-2181.17,0.00028712,5]
[364876669,1749283900258,-675.89,0.00028712,5]
[364876670,1749283900267,-1342.98,0.00028712,5]
[364876671,1749283900276,-5948.08,0.00028712,5]
[364876672,1749283900286,-748.21,0.00028712,5]
[364876673,1749283900296,-1325.93,0.00028712,5]
[364876674,1749283900305,-6018.65,0.00028712,5]
[364876675,1749283900315,-480.0,0.00028712,5]
[364876676,1749283900324,-480.0,0.00028712,5]
[364876677,1749283900338,-622.41,0.00028712,5]
[364876678,1749283900348,-1345.91,0.00028712,5]
[364876679,1749283900358,-480.0,0.00028712,5]
[364876680,1749283900367,-480.0,0.00028712,5]
[364876681,1749283900378,-965.47,0.00028712,5]
[364876682,1749283900388,-2147.53,0.00028712,2]
[364876683,1749283900399,-480.0,0.00028712,5]
[364876684,1749283900410,-2644.51,0.00028712,5]
[364876685,1749283900419,-2010.42,0.00028712,5]
[364876686,1749283900429,-3264.83,0.00028712,5]
[364876687,1749283900439,-1546.17,0.00028712,5]
[364876688,1749283900448,-480.0,0.00028712,5]
[364876689,1749283900458,-2124.13,0.00028712,5]
[364876690,1749283900467,-480.0,0.00028712,5]
[364876691,1749283900478,-3803.92,0.00028712,5]
[364876692,1749283900488,-1458.57,0.00028712,5]
[364876693,1749283900498,-882.95,0.00028712,5]
[364876694,1749283900508,-6110.32,0.00028712,5]
[364876695,1749283900518,-3035.15,0.00028712,5]
[364876696,1749283900527,-1003.3,0.00028712,5]
[364876697,1749283900537,-480.0,0.00028712,5]
[364876698,1749283900546,-1170.49,0.00028712,5]
[364876699,1749283900556,-3633.12,0.00028712,5]
[364876700,1749283900566,-1000.0,0.00028712,5]
[364876701,1749283900576,-596.66,0.00028712,5]
[364876702,1749283900585,-1513.66,0.00028712,5]
[364876703,1749283900596,-1093.12,0.00028712,5]
[364876704,1749283900606,-814.18,0.00028712,5]
[364876705,1749283900616,-2008.91,0.00028712,5]
[364876706,1749283900627,-495.78,0.00028712,5]
[364876707,1749283900637,-480.0,0.00028712,5]
[364876708,1749283900647,-802.83,0.00028712,5]
[364876709,1749283900657,-2029.78,0.00028712,5]
[364876710,1749283900667,-2623.17,0.00028712,5]
[364876711,1749283900677,-5571.7,0.00028712,5]
[364876712,1749283900687,-480.0,0.00028712,5]
[364876713,1749283900697,-749.45,0.00028712,5]
[364876714,1749283900707,-151.0,0.00028712,7]
[364876715,1749283900718,-2770.74,0.00028712,5]
[364876716,1749283900727,-1941.16,0.00028712,5]
[364876717,1749283900737,-855.47,0.00028712,5]
[364876718,1749283900747,-1529.93,0.00028712,5]
[364876719,1749283900757,-734.71,0.00028712,5]
[364876720,1749283900767,-4023.49,0.00028712,5]
[364876721,1749283900777,-480.0,0.00028712,5]
[364876722,1749283900787,-1675.33,0.00028712,5]
[364876723,1749283900798,-525.98,0.00028712,5]
[364876724,1749283900808,-1753.76,0.00028712,5]
[364876725,1749283900817,-967.54,0.00028712,5]
[364876726,1749283900827,-480.0,0.00028712,5]
[364876727,1749283900837,-11876.34,0.00028712,5]
[364876728,1749283900846,-1453.1,0.00028712,5]
[364876729,1749283900856,-480.0,0.00028712,5]
[364876730,1749283900865,-683.94,0.00028712,5]
[364876731,1749283900875,-480.0,0.00028712,5]
[364876732,1749283900885,-1122.69,0.00028712,5]
[364876733,1749283900895,-10865.99,0.00028712,5]
[364876734,1749283900905,-480.0,0.00028712,5]
[364876735,1749283900915,-1581.96,0.00028712,5]
[364876736,1749283900925,-871.56,0.00028712,5]
[364876737,1749283900935,-480.0,0.00028712,5]
[364876738,1749283900944,-480.0,0.00028712,5]
[364876739,1749283900954,-813.01,0.00028712,5]
[364876740,1749283900964,-480.0,0.00028712,5]
[364876741,1749283900973,-480.0,0.00028712,5]
[364876742,1749283900983,-2227.22,0.00028712,5]
[364876743,1749283900993,-2000.65,0.00028712,5]
[364876744,1749283901003,-480.0,0.00028712,5]
[364876745,1749283901013,-1731.59,0.00028712,5]
[364876746,1749283901022,-2403.78,0.00028712,5]
[364876747,1749283901032,-1327.04,0.00028712,5]
[364876748,1749283901042,-747.9,0.00028712,5]
[364876749,1749283901052,-480.0,0.00028712,5]
[364876750,1749283901062,-575.71,0.00028712,5]
[364876751,1749283901072,-480.0,0.00028712,5]
[364876752,1749283901081,-492.12,0.00028712,5]
[364876753,1749283901091,-480.0,0.00028712,5]
[364876754,1749283901101,-480.0,0.00028712,5]
[364876755,1749283901110,-4322.98,0.00028712,5]
[364876756,1749283901120,-494.08,0.00028712,5]
[364876757,1749283901130,-480.0,0.00028712,5]
[364876758,1749283901139,-518.65,0.00028712,5]
[364876759,1749283901148,-1066.78,0.00028712,5]
[364876760,1749283901158,-1078.23,0.00028712,5]
[364876761,1749283901168,-499.42,0.00028712,5]
[364876762,1749283901177,-697.95,0.00028712,5]
[364876763,1749283901187,-957.28,0.00028712,5]
[364876764,1749283901196,-871.81,0.00028712,5]
[364876765,1749283901206,-1569.25,0.00028712,5]
[364876766,1749283901215,-480.0,0.00028712,5]
[364876767,1749283901225,-480.0,0.00028712,5]
[364876768,1749283901234,-757.09,0.00028712,5]
[364876769,1749283901244,-3593.96,0.00028712,5]
[364876770,1749283901254,-869.93,0.00028712,5]
[364876771,1749283901263,-607.22,0.00028712,5]
[364876772,1749283901272,-1281.37,0.00028712,5]
[364876773,1749283901281,-1143.16,0.00028712,5]
[364876774,1749283901291,-480.0,0.00028712,5]
[364876775,1749283901300,-630.74,0.00028712,5]
[364876776,1749283901309,-689.06,0.00028712,5]
[364876777,1749283901318,-1387.38,0.00028712,5]
[364876778,1749283901328,-480.0,0.00028712,5]
[364876779,1749283901341,-2996.31,0.00028712,5]
[364876780,1749283901350,-480.0,0.00028712,5]
[364876781,1749283901360,-579.382257,0.00028712,7]
[364876782,1749283901369,-579.382257,0.00028712,7]
[364876783,1749283901378,-150.0,0.00028713,7]
[364876784,1749283901388,-150.0,0.00028718,7]
[364876785,1749283901397,-279.10775981,0.00028724,7]
[364876786,1749283901406,-218.84593086,0.00028724,7]
[364876787,1749283901416,-150.0,0.00028749,2]
[364876788,1749283901426,-279.10775981,0.00028756,7]
[364876789,1749283901435,-218.84593086,0.00028756,7]
[364876790,1749283901445,-293.45,0.00028756,2]
[364876791,1749283901454,-150.0,0.00028756,7]
[364876792,1749283901463,-150.0,0.00028757,7]
[364876793,1749283901473,-150.0,0.0002876,7]
[364876794,1749283901482,-400.0,0.0002876,13]
[364876795,1749283901491,-400.0,0.0002876,13]
[364876796,1749283901501,-400.0,0.0002876,13]
[364876797,1749283901510,-400.0,0.0002876,13]
[364876798,1749283901519,-400.0,0.0002876,13]
[364876799,1749283901528,-400.0,0.0002876,13]
[364876800,1749283901538,-400.0,0.0002876,13]
[364876801,1749283901548,-400.0,0.0002876,13]
[364876802,1749283901558,-400.0,0.0002876,13]
[364876803,1749283901568,-400.0,0.0002876,13]
[364876804,1749283901578,-400.0,0.0002876,13]
[364876805,1749283901587,-400.0,0.0002876,13]
[364876806,1749283901597,-400.0,0.0002876,13]
[364876807,1749283901607,-400.0,0.0002876,13]
[364876808,1749283901616,-400.0,0.0002876,13]
[364876809,1749283901625,-400.0,0.0002876,13]
[364876810,1749283901634,-400.0,0.0002876,13]
[364876811,1749283901643,-400.0,0.0002876,13]
[364876812,1749283901653,-400.0,0.0002876,13]
[364876813,1749283901662,-400.0,0.0002876,13]
[364876814,1749283901673,-400.0,0.0002876,13]
[364876815,1749283901682,-400.0,0.0002876,13]
[364876816,1749283901691,-210.0,0.0002876,13]
[364876817,1749283901701,-200.0,0.0002876,2]
[364876818,1749283901711,-200.0,0.0002876,2]
[364876819,1749283901720,-200.0,0.0002876,2]
[364876820,1749283901730,-200.0,0.0002876,2]
[364876821,1749283901739,-200.0,0.0002876,2]
[364876822,1749283901748,-200.0,0.0002876,2]
[364876823,1749283901757,-200.0,0.0002876,2]
[364876824,1749283901766,-200.0,0.0002876,2]
[364876825,1749283901776,-200.0,0.0002876,2]
[364876826,1749283901786,-200.0,0.0002876,2]
[364876827,1749283901795,-200.0,0.0002876,2]
[364876828,1749283901805,-200.0,0.0002876,2]
[364876829,1749283901815,-200.0,0.0002876,2]
[364876830,1749283901824,-200.0,0.0002876,2]
[364876831,1749283901834,-231.0,0.0002876,2]
[364876832,1749283901844,-150.0,0.00028764,7]
[364876833,1749283901854,-150.0,0.00028767,2]
[364876834,1749283901864,-177.0,0.00028767,14]
[364876835,1749283901874,-3162.31,0.00028767,2]
[364876836,1749283901884,-150.0,0.00028773,2]
[364876837,1749283901894,-150.0,0.00028773,2]
[364876838,1749283901904,-150.0,0.00028773,2]
[364876839,1749283901913,-572.79025593,0.00028773,2]
[364876840,1749283901923,-4893.22236091,0.00028773,2]
[364876841,1749283901934,-47663.64663568,0.00028773,2]
[364876842,1749283901944,-1221.810892,0.00028773,7]
[364876843,1749283901954,-1221.810892,0.00028773,7]
[364876844,1749283901965,-151.0,0.00028773,7]
[364876845,1749283901976,-151.0,0.00028773,7]
[364876846,1749283901986,-10000.0,0.00028773,7]
[364876847,1749283901996,-10000.0,0.00028773,7]
[364876848,1749283902007,-10000.0,0.00028773,7]
[364876849,1749283902020,-196.66935032,0.00028776,2]
[364876850,1749283902030,-279.10775981,0.00028788,7]
[364876851,1749283902040,-218.84593086,0.00028788,7]
[364876852,1749283902051,-150.0,0.0002879,7]
[364876853,1749283902062,-814.43744323,0.00028791,2]
[364876854,1749283902072,-150.0,0.00028799,7]
[364876855,1749283902082,-1000.0,0.000288,2]
[364876856,1749283902091,-300.0,0.000288,10]
[364876857,1749283902100,-150.0,0.00028809,7]
[364876858,1749283902110,-279.10775981,0.0002882,7]
[364876859,1749283902119,-218.84593086,0.0002882,7]
[364876860,1749283902129,-150.0,0.00028822,7]
[364876861,1749283902140,-1000.0,0.00028833,2]
[364876862,1749283902150,-4000.0,0.00028833,4]
[364876863,1749283902160,-150.0,0.00028839,2]
[364876864,1749283902169,-150.0,0.00028842,7]
[364876865,1749283902179,-150.0,0.00028845,2]
[364876866,1749283902188,-150.0,0.00028851,2]
[364876867,1749283902197,-279.10775981,0.00028852,7]
[364876868,1749283902207,-218.84593086,0.00028852,7]
[364876869,1749283902216,-150.0,0.00028854,7]
[364876870,1749283902225,-150.0,0.0002886,2]
[364876871,1749283902235,-296.10723875,0.00028866,19]
[364876872,1749283902245,-700.0,0.0002887,2]
[364876873,1749283902254,-150.0,0.00028872,7]
[364876874,1749283902264,-150.0,0.00028872,7]
[364876875,1749283902273,-300.0,0.00028875,10]
[364876876,1749283902283,-794.82,0.00028875,2]
[364876877,1749283902293,-480.0,0.00028876,5]
[364876878,1749283902302,-631.92,0.00028876,5]
[364876879,1749283902311,-480.0,0.00028876,5]
[364876880,1749283902320,-480.0,0.00028876,5]
[364876881,1749283902331,-359.3,0.00028876,5]
[364876882,1749283902343,-480.0,0.00028876,5]
[364876883,1749283902353,-190.537295,0.00028876,7]
[364876884,1749283902363,-151.0,0.00028876,7]
[364876885,1749283902373,-151.0,0.00028876,7]
[364876886,1749283902383,-151.0,0.00028876,7]
[364876887,1749283902393,-151.0,0.00028876,7]
[364876888,1749283902403,-151.0,0.00028876,7]
[364876889,1749283902415,-151.0,0.00028876,7]
[364876890,1749283902426,-642.32,0.00028876,5]
[364876891,1749283902436,-1416.8,0.00028876,5]
[364876892,1749283902446,-179.070714,0.00028876,7]
[364876893,1749283902455,-179.070714,0.00028876,7]
[364876894,1749283902464,-151.0,0.00028876,7]
[364876895,1749283902474,-480.0,0.00028876,5]
[364876896,1749283902484,-151.0,0.00028876,7]
[364876897,1749283902494,-151.0,0.00028876,7]
[364876898,1749283902504,-151.0,0.00028876,7]
[364876899,1749283902514,-151.0,0.00028876,7]
[364876900,1749283902523,-151.0,0.00028876,7]
[364876901,1749283902533,-151.0,0.00028876,7]
[364876902,1749283902543,-447.530059,0.00028876,7]
[364876903,1749283902552,-447.530059,0.00028876,7]
[364876904,1749283902562,-480.0,0.00028876,5]
[364876905,1749283902572,-480.0,0.00028876,5]
[364876906,1749283902581,-722.44,0.00028876,5]
[364876907,1749283902591,-658.72,0.00028876,5]
[364876908,1749283902600,-480.0,0.00028876,5]
[364876909,1749283902609,-480.0,0.00028876,5]
[364876910,1749283902619,-514.07,0.00028876,5]
[364876911,1749283902628,-480.0,0.00028876,5]
[364876912,1749283902638,-480.0,0.00028876,5]
[364876913,1749283902647,-1423.16,0.00028876,5]
[364876914,1749283902656,-1954.69,0.00028876,5]
[364876915,1749283902666,-424.64933847,0.00028876,5]
[364876916,1749283902676,-624.11,0.00028876,5]
[364876917,1749283902685,-480.0,0.00028876,5]
[364876918,1749283902695,-480.0,0.00028876,5]
[364876919,1749283902705,-480.0,0.00028876,5]
[364876920,1749283902715,-618.47,0.00028876,5]
[364876921,1749283902724,-1137.84,0.00028876,5]
[364876922,1749283902734,-1163.74,0.00028876,5]
[364876923,1749283902743,-480.0,0.00028876,5]
[364876924,1749283902752,-480.0,0.00028876,5]
[364876925,1749283902762,-807.84,0.00028876,5]
[364876926,1749283902771,-1323.94,0.00028876,5]
[364876927,1749283902781,-480.0,0.00028876,5]
[364876928,1749283902790,-480.0,0.00028876,5]
[364876929,1749283902799,-722.49,0.00028876,5]
[364876930,1749283902809,-480.0,0.00028876,5]
[364876931,1749283902818,-1046.98,0.00028876,5]
[364876932,1749283902829,-480.0,0.00028876,5]
[364876933,1749283902838,-713.0,0.00028876,5]
[364876934,1749283902847,-548.11,0.00028876,5]
[364876935,1749283902856,-882.53,0.00028876,5]
[364876936,1749283902866,-480.0,0.00028876,5]
[364876937,1749283902875,-736.64,0.00028876,5]
[364876938,1749283902884,-658.07,0.00028876,5]
[364876939,1749283902895,-676.89,0.00028876,5]
[364876940,1749283902904,-611.81,0.00028876,5]
[364876941,1749283902913,-903.48,0.00028876,5]
[364876942,1749283902923,-545.14,0.00028876,5]
[364876943,1749283902932,-1030.91,0.00028876,5]
[364876944,1749283902941,-151.0,0.00028876,7]
[364876945,1749283902950,-337.05142663,0.00028876,5]
[364876946,1749283902960,-151.0,0.00028876,7]
[364876947,1749283902969,-480.0,0.00028876,5]
[364876948,1749283902978,-480.0,0.00028876,5]
[364876949,1749283902987,-1787.253615,0.00028876,5]
[364876950,1749283902997,-480.0,0.00028876,5]
[364876951,1749283903007,-652.14,0.00028876,5]
[364876952,1749283903022,-1026.76,0.00028876,5]
[364876953,1749283903032,-573.4,0.00028876,5]
[364876954,1749283903043,-873.46,0.00028876,5]
[364876955,1749283903055,-480.0,0.00028876,5]
[364876956,1749283903065,-151.0,0.00028876,7]
[364876957,1749283903075,-787.2,0.00028876,5]
[364876958,1749283903084,-1212.38,0.00028876,5]
[364876959,1749283903093,-2102.121321,0.00028876,5]
[364876960,1749283903103,-480.0,0.00028876,5]
[364876961,1749283903112,-151.0,0.00028876,7]
[364876962,1749283903121,-151.0,0.00028876,7]
[364876963,1749283903131,-480.0,0.00028876,5]
[364876964,1749283903141,-480.0,0.00028876,5]
[364876965,1749283903151,-151.0,0.00028876,7]
[364876966,1749283903160,-1174.57,0.00028876,5]
[364876967,1749283903169,-850.33,0.00028876,5]
[364876968,1749283903179,-554.27,0.00028876,5]
[364876969,1749283903188,-286.24272846,0.00028876,5]
[364876970,1749283903197,-737.61,0.00028876,5]
[364876971,1749283903206,-494.24,0.00028876,5]
[364876972,1749283903215,-634.26,0.00028876,5]
[364876973,1749283903224,-835.68,0.00028876,5]
[364876974,1749283903234,-768.49,0.00028876,5]
[364876975,1749283903243,-480.0,0.00028876,5]
[364876976,1749283903253,-528.15,0.00028876,5]
[364876977,1749283903262,-480.0,0.00028876,5]
[364876978,1749283903271,-480.0,0.00028876,5]
[364876979,1749283903280,-476.0825683,0.00028876,5]
[364876980,1749283903290,-1115.25,0.00028876,5]
[364876981,1749283903299,-480.0,0.00028876,5]
[364876982,1749283903308,-2016.63,0.00028876,5]
[364876983,1749283903318,-480.0,0.00028876,5]
[364876984,1749283903328,-480.0,0.00028876,5]
[364876985,1749283903339,-480.0,0.00028876,5]
[364876986,1749283903348,-984.78,0.00028876,5]
[364876987,1749283903357,-480.0,0.00028876,5]
[364876988,1749283903367,-480.0,0.00028876,5]
[364876989,1749283903376,-480.0,0.00028876,5]
[364876990,1749283903386,-956.19,0.00028876,5]
[364876991,1749283903395,-485.39,0.00028876,5]
[364876992,1749283903405,-601.8,0.00028876,5]
[364876993,1749283903414,-798.33,0.00028876,5]
[364876994,1749283903425,-658.43,0.00028876,5]
[364876995,1749283903434,-984.27,0.00028876,5]
[364876996,1749283903443,-853.62,0.00028876,5]
[364876997,1749283903453,-480.0,0.00028876,5]
[364876998,1749283903462,-480.0,0.00028876,5]
[364876999,1749283903472,-1719.89,0.00028876,5]
[364877000,1749283903481,-879.54,0.00028876,5]
[364877001,1749283903491,-990.87,0.00028876,5]
[364877002,1749283903645,-769.25,0.00028876,5]
[364877003,1749283903669,-1000.0,0.00028876,5]
[364877004,1749283903679,-619.63,0.00028876,5]
[364877005,1749283903689,-964.13,0.00028876,5]
[364877006,1749283903700,-614.65,0.00028876,5]
[364877007,1749283903710,-480.0,0.00028876,5]
[364877008,1749283903719,-620.08,0.00028876,5]
[364877009,1749283903731,-225.218056,0.00028876,7]
[364877010,1749283903740,-959.52,0.00028876,5]
[364877011,1749283903750,-225.218056,0.00028876,7]
[364877012,1749283903761,-481.61,0.00028876,5]